{"text_format":"1","workbook":"xlsx","n_sheets":16,"sheets":["Apresentação","Dados gerais","Investimento inicial","Consumo de energia","Custos de produção - Ano 1","Custos de produção - Ano 2","Custos de produção - Ano 3","Custos de produção - Ano 4","Custos de produção - Ano 5","Custos de produção - Ano 6","Custos de produção - Ano 7","Custos de produção - Ano 8","Custos de produção - Ano 9","Custos de produção - Ano 10","Receitas","Fluxo de caixa"],"not_rendered":{"charts":0,"images":2,"macros":1,"external_links":0,"defined_names":0,"comments":0,"pivot_tables":0},"unopened":[],"bounds":{"document_bytes":16777216,"sheet_cells":100000,"rows_first":2000,"rows_last":500,"rows_between":2000,"halvings":0,"cell_chars":16384,"cell_head_chars":4096},"cells_cut":0,"cells_raw":0,"read":"whole","date_system":"1900"}

{"sheet":"Apresentação","index":0,"n_rows":0,"n_cols":0,"rows_kept":0,"cut":false,"hidden":false,"merged":[]}

{"sheet":"Dados gerais","index":1,"n_rows":10,"n_cols":2,"rows_kept":10,"cut":false,"hidden":false,"merged":[[8,2,8,7],[9,2,9,7],[1,1,1,7],[2,2,2,7],[4,2,4,7],[3,2,3,7],[6,1,6,7],[7,2,7,7]]}
[]
[null,"Dados do produtor:"]
[null,"Nome:"]
[null,"Endereço:"]
[null,"Profissão:"]
[]
[null,"Dados da empresa:"]
[null,"Nome:"]
[null,"Atividade desenvolvida:"]
[null,"Nº de registro:"]

{"sheet":"Investimento inicial","index":2,"n_rows":43,"n_cols":7,"rows_kept":43,"cut":false,"hidden":false,"merged":[[42,1,42,3],[41,1,41,3],[21,1,21,6],[34,1,34,6],[36,1,36,3],[38,1,38,3],[37,1,37,3],[39,1,39,3],[40,1,40,3],[35,1,35,3],[15,1,15,6],[6,2,6,4],[1,1,1,6],[14,1,14,6],[2,2,2,4],[3,2,3,4],[4,2,4,4],[5,2,5,4]]}
[]
[null,"Investimentos iniciais"]
[null,"Item","Preço total",null,null,"Vida útil (anos)","Custo depreciação (a.a.)"]
[null,"Compra da terra ",null,null,null,null,{"$f":"E4/F4","v":{"$error":"#DIV/0!"}}]
[null,"Contrução da estufa",null,null,null,null,{"$f":"E5/F5","v":{"$error":"#DIV/0!"}}]
[null,"Equipamentos necessários para geração de Energia Fotovoltaica",null,null,null,null,{"$f":"E6/F6","v":{"$error":"#DIV/0!"}}]
[null,"Preparação do terreno para instalação da usina",null,null,null,null,{"$error":"#DIV/0!"}]
[null,"Item","Quantidade","Preço unitário","Preço total","Vida útil (anos)","Custo depreciação (a.a.)"]
[null,"Tanque ",null,null,{"$f":"D9*C9","v":0},null,{"$f":"E9/F9","v":{"$error":"#DIV/0!"}}]
[null,"Água ",null,null,0,null,{"$error":"#DIV/0!"}]
[null,"Motobomba para o sistema de aeração ",null,null,0,null,{"$error":"#DIV/0!"}]
[null,"Flotador por ar dissolvido",null,null,{"$f":"D12*C12","v":0},null,{"$error":"#DIV/0!"}]
[null,"Aquecedor",null,null,0,null,{"$error":"#DIV/0!"}]
[null,"Gerador de energia ",null,null,0,null,{"$error":"#DIV/0!"}]
[null,"Despesas  iniciais"]
[null,"Sistema de aeração:"]
[null,"Item","Quantidade","Preço unitário","Preço total","Vida útil (anos)","Custo depreciação (a.a.)"]
[null,"Canos ",null,null,{"$f":"D18*C18","v":0},null,{"$f":"E18/F18","v":{"$error":"#DIV/0!"}}]
[null,"Difusores de oxigênio",null,null,0,null,{"$error":"#DIV/0!"}]
[null,"Conexões",null,null,0,null,{"$error":"#DIV/0!"}]
[null,"Mangueiras ",null,null,0,null,{"$error":"#DIV/0!"}]
[null,"Equipamentos:"]
[null,"Item","Quantidade","Preço unitário","Preço total","Vida útil (anos)","Custo depreciação (a.a.)"]
[null,"Lâmpadas ",null,null,0,null,{"$error":"#DIV/0!"}]
[null,"Reservatório de água ",null,null,0,null,{"$error":"#DIV/0!"}]
[null,"Oxímetro",null,null,0,null,{"$error":"#DIV/0!"}]
[null,"Balança 1000 kg",null,null,0,null,{"$error":"#DIV/0!"}]
[null,"Balança 5kg",null,null,0,null,{"$error":"#DIV/0!"}]
[null,"Medidor de pH",null,null,0,null,{"$error":"#DIV/0!"}]
[null,"Termômetro",null,null,0,null,{"$error":"#DIV/0!"}]
[null,"Cone de ImHoff",null,null,0,null,{"$error":"#DIV/0!"}]
[null,"Suporte para o cone de ImHoff",null,null,{"$f":"D32*C32","v":0},null,{"$error":"#DIV/0!"}]
[null,"Fita métrica ",null,null,0,null,{"$error":"#DIV/0!"}]
[null,"Rede de despesca ",null,null,0,null,{"$error":"#DIV/0!"}]
[null,"Licenças, impostos e taxas:"]
[null,"Item",null,null,"Preço total","Vida útil (anos)","Custo depreciação (a.a.)"]
[null,"Licença ambiental",null,null,null,null,{"$f":"E37/F37","v":{"$error":"#DIV/0!"}}]
[null,"Licença sanitária",null,null,null,null,{"$f":"E38/F38","v":{"$error":"#DIV/0!"}}]
[null,"Alvará ",null,null,null,null,{"$error":"#DIV/0!"}]
[null,"Elaboração do projeto",null,null,null,null,{"$error":"#DIV/0!"}]
[null,"Instalação elétrica pela distribuidora de energia",null,null,null,null,{"$error":"#DIV/0!"}]
[null,"Valor total do investimeto com utilização de energia hidrelétrica:",null,null,{"$f":"SUM(C4:E5,E9:E14,E18:E21,E24:E34,E37:E41)","v":0},"Custo total da depreciação: ",{"$f":"SUM(G4:G5,G9:G14,G18:G21,G24:G34,G37:G41)","v":{"$error":"#DIV/0!"}}]
[null,"Valor total do investimeto com utilização de energia fotovoltaica:",null,null,{"$f":"SUM(C4:E7,E9:E14,E18:E21,E24:E34,E37:E41)","v":0},"Custo total da depreciação: ",{"$f":"SUM(G5:G6,G10:G15,G19:G22,G25:G35,G38:G42)","v":{"$error":"#DIV/0!"}}]

{"sheet":"Consumo de energia","index":3,"n_rows":11,"n_cols":8,"rows_kept":11,"cut":false,"hidden":false,"merged":[[7,1,7,6],[9,1,9,6],[10,1,10,6],[1,1,1,7]]}
[]
[null,"Consumo de energia "]
[null,"Item","Quantidade","Potência (Watts)","Horas de funcionamento por dia","Dias de funcionamento por mês","Horas funcionamento por mês","Consumo mensal (kwh/mês)"]
[null,"Lâmpadas",null,null,null,null,{"$f":"E4*F4","v":0},{"$f":"(C4*D4*G4)/1000","v":0}]
[null,"Aquecedor",null,null,null,null,{"$f":"E5*F5","v":0},{"$f":"(C5*D5*G5)/1000","v":0}]
[null,"Aerador",null,null,null,null,0,{"$f":"(C6*D6*G6)/1000","v":0}]
[null,"Flotador",null,null,null,null,0,{"$f":"(C7*D7*G7)/1000","v":0}]
[null,"Consumo mensal total com utilização de energia hidrelétrica (kWh/mês):",null,null,null,null,null,{"$f":"SUM(H4:H7)","v":0}]
[]
[null,"Economia proporcionada pela utilização da energia fotovoltaica (%):"]
[null,"Consumo mensal de energia com utilização da energia fotovoltaica (kWh/mês):",null,null,null,null,null,{"$f":"H8*H10","v":0}]

{"sheet":"Custos de produção - Ano 1","index":4,"n_rows":49,"n_cols":6,"rows_kept":49,"cut":false,"hidden":false,"merged":[[30,1,30,5],[44,1,44,3],[47,1,47,3],[45,1,45,3],[48,1,48,3],[29,1,29,3],[28,1,28,3],[14,1,14,3],[15,1,15,3],[16,1,16,3],[17,1,17,3],[18,1,18,3],[20,1,20,3],[19,1,19,3],[22,1,22,3],[21,1,21,3],[25,1,25,5],[26,1,26,3],[1,1,1,5],[24,1,24,5],[2,1,2,5],[13,1,13,5],[27,1,27,3]]}
[]
[null,"Custos fixos - Ano 1"]
[null,"Mão de obra:"]
[null,"Item","Quantidade","Valor mensal","Valor total mensal","Valor total anual"]
[null,"Salário",0,0,{"$f":"D5*C5","v":0},{"$f":"E5*12","v":0}]
[null,"Décimo terceiro",null,null,{"$f":"D6*C6","v":0},0]
[null,"INSS",null,null,{"$f":"D7*C7","v":0},0]
[null,"Seguro acidente trabalho",null,null,{"$f":"D8*C8","v":0},0]
[null,"FGTS",null,null,0,0]
[null,"Férias",null,null,0,0]
[null,"Afastamentos/licenças",null,null,0,0]
[null,"Vale-transporte",null,null,0,0]
[null,"Vale-alimentação",null,null,0,0]
[null,"Demais despesas:"]
[null,"Item",null,null,"Valor total mensal","Valor total anual"]
[null,"Gastos com manutenção",null,null,{"$f":"F16/12","v":0}]
[null,"Imposto Territorial Rural - ITR",null,null,0]
[null,"Fundo de Assistência ao Trabalhador Rural - FUNRURAL",null,null,0]
[null,"Emprestimo rural ",null,null,0]
[null,"Depreciação SEM o uso de energia fotovoltaica",null,null,0,{"$f":"'Investimento inicial'!G42","v":{"$error":"#DIV/0!"}}]
[null,"Depreciação COM o uso de energia fotoltaica",null,null,0,{"$f":"'Investimento inicial'!G43","v":{"$error":"#DIV/0!"}}]
[null,"Custos fixos totais com o uso de energia hidrelétrica:",null,null,{"$f":"SUM(E5:E13,E16:E20)","v":0},{"$f":"SUM(F5:F13,F16:F20)","v":{"$error":"#DIV/0!"}}]
[null,"Custos fixos totais com o uso de energia fotovoltacia:",null,null,{"$f":"SUM(E5:E13,E16:E19,E21)","v":0},{"$f":"SUM(F5:F13,F16:F19,F21)","v":{"$error":"#DIV/0!"}}]
[]
[null,"Custos variáveis - Ano 1"]
[null,"Mão de obra:"]
[null,"Item",null,null,"Valor total mensal","Valor total anual"]
[null,"Mão-de-obra especializada ",null,null,null,{"$f":"E28*12","v":0}]
[null,"Mão de obra temporária",null,null,null,{"$f":"E29*12","v":0}]
[null,"Alimentação - Mão-de-obra temporária",null,null,null,{"$f":"E30*12","v":0}]
[null,"Produção:"]
[null,"Item","Quantidade","Preço unitário","Valor total mensal","Valor total anual"]
[null,"Compra de alevinos ",null,null,{"$f":"C33*D33","v":0},{"$f":"E33*12","v":0}]
[null,"Testes concentração de amônia",null,null,{"$f":"C34*D34","v":0},{"$f":"E34*12","v":0}]
[null,"Testes concentração de nitrito",null,null,{"$f":"C35*D35","v":0},{"$f":"E35*12","v":0}]
[null,"Testes alcalinidade",null,null,{"$f":"C36*D36","v":0},{"$f":"E36*12","v":0}]
[null,"Ração ",null,null,{"$f":"C37*D37","v":0},{"$f":"E37*12","v":0}]
[null,"Fonte de Carbono",null,null,{"$f":"C38*D38","v":0},0]
[null,"Cal hidratada ",null,null,0,0]
[null,"Conta de eletricidade (kWh)",{"$f":"'Consumo de energia'!H7","v":0},null,{"$f":"C40*D40","v":0},0]
[null,"Conta de Eletricidade com uso da Energia Fotovoltaica (kWh)",{"$f":"'Consumo de energia'!H11","v":0},null,0,0]
[null,"Reposição de água ",null,null,0,0]
[null,"Tarifa esgoto ",null,null,0,0]
[null,"Diesel para o gerador",null,null,0,0]
[null,"Custos variáveis totais com utilização de energia hidrelétrica:",null,null,{"$f":"SUM(E28:E30,E33:E40,E42:E44)","v":0},{"$f":"SUM(F28:F30,F33:F40,F42:F44)","v":0}]
[null,"Custos variáveis totais com utilização de energia fotovoltaica:",null,null,{"$f":"SUM(E33:E44)","v":0},{"$f":"SUM(F33:F44)","v":0}]
[null,null,null,null,"Valor total mensal","Valor total anual"]
[null,"Despesas totais com utilização de energia hidrelétrica:",null,null,{"$f":"SUM(E45,E22)","v":0},{"$f":"SUM(F45,F22)","v":{"$error":"#DIV/0!"}}]
[null,"Despesas totais com utilização de energia fotovoltaica:",null,null,{"$f":"SUM(E23,E46)","v":0},{"$f":"SUM(F23,F46)","v":{"$error":"#DIV/0!"}}]

{"sheet":"Custos de produção - Ano 2","index":5,"n_rows":49,"n_cols":6,"rows_kept":49,"cut":false,"hidden":false,"merged":[[16,1,16,3],[1,1,1,5],[2,1,2,5],[13,1,13,5],[14,1,14,3],[15,1,15,3],[29,1,29,3],[17,1,17,3],[18,1,18,3],[19,1,19,3],[20,1,20,3],[21,1,21,3],[22,1,22,3],[24,1,24,5],[25,1,25,5],[26,1,26,3],[27,1,27,3],[28,1,28,3],[30,1,30,5],[44,1,44,3],[45,1,45,3],[47,1,47,3],[48,1,48,3]]}
[]
[null,"Custos fixos - Ano 2"]
[null,"Mão de obra:"]
[null,"Item","Quantidade","Valor mensal","Valor total mensal","Valor total anual"]
[null,"Salário",null,null,{"$f":"D5*C5","v":0},{"$f":"E5*12","v":0}]
[null,"Décimo terceiro",null,null,{"$f":"D6*C6","v":0},0]
[null,"INSS",null,null,{"$f":"D7*C7","v":0},0]
[null,"Seguro acidente trabalho",null,null,{"$f":"D8*C8","v":0},0]
[null,"FGTS",null,null,0,0]
[null,"Férias",null,null,{"$f":"D10*C10","v":0},0]
[null,"Afastamentos/licenças",null,null,0,0]
[null,"Vale-transporte",null,null,0,0]
[null,"Vale-alimentação",null,null,0,0]
[null,"Demais despesas:"]
[null,"Item",null,null,"Valor total mensal","Valor total anual"]
[null,"Gastos com manutenção",null,null,{"$f":"F16/12","v":0}]
[null,"Imposto Territorial Rural - ITR",null,null,0]
[null,"Fundo de Assistência ao Trabalhador Rural - FUNRURAL",null,null,0]
[null,"Emprestimo rural ",null,null,0]
[null,"Depreciação SEM o uso de energia fotovoltaica",null,null,0,{"$f":"'Investimento inicial'!G42","v":{"$error":"#DIV/0!"}}]
[null,"Depreciação COM o uso de energia fotoltaica",null,null,0,{"$f":"'Investimento inicial'!G43","v":{"$error":"#DIV/0!"}}]
[null,"Custos fixos totais com o uso de energia hidrelétrica:",null,null,{"$f":"SUM(E5:E13,E16:E20)","v":0},{"$f":"SUM(F5:F13,F16:F20)","v":{"$error":"#DIV/0!"}}]
[null,"Custos fixos totais com o uso de energia fotovoltacia:",null,null,{"$f":"SUM(E5:E13,E16:E19,E21)","v":0},{"$f":"SUM(F5:F13,F16:F19,F21)","v":{"$error":"#DIV/0!"}}]
[]
[null,"Custos variáveis - Ano 2"]
[null,"Mão de obra:"]
[null,"Item",null,null,"Valor total mensal","Valor total anual"]
[null,"Mão-de-obra especializada ",null,null,null,{"$f":"E28*12","v":0}]
[null,"Mão de obra temporária",null,null,null,{"$f":"E29*12","v":0}]
[null,"Alimentação - Mão-de-obra temporária",null,null,null,{"$f":"E30*12","v":0}]
[null,"Produção:"]
[null,"Item","Quantidade","Preço unitário","Valor total mensal","Valor total anual"]
[null,"Compra de alevinos ",null,null,{"$f":"C33*D33","v":0},{"$f":"E33*12","v":0}]
[null,"Testes concentração de amônia",null,null,{"$f":"C34*D34","v":0},{"$f":"E34*12","v":0}]
[null,"Testes concentração de nitrito",null,null,{"$f":"C35*D35","v":0},{"$f":"E35*12","v":0}]
[null,"Testes alcalinidade",null,null,{"$f":"C36*D36","v":0},{"$f":"E36*12","v":0}]
[null,"Ração ",null,null,{"$f":"C37*D37","v":0},{"$f":"E37*12","v":0}]
[null,"Fonte de Carbono",null,null,{"$f":"C38*D38","v":0},0]
[null,"Cal hidratada ",null,null,0,0]
[null,"Conta de eletricidade (kWh)",{"$f":"'Consumo de energia'!H7","v":0},null,0,0]
[null,"Conta de Eletricidade com uso da Energia Fotovoltaica (kWh)",{"$f":"'Consumo de energia'!H11","v":0},null,0,0]
[null,"Reposição de água ",null,null,0,0]
[null,"Tarifa esgoto ",null,null,0,0]
[null,"Diesel para o gerador",null,null,0,0]
[null,"Custos variáveis totais com utilização de energia hidrelétrica:",null,null,{"$f":"SUM(E28:E30,E33:E40,E42:E44)","v":0},{"$f":"SUM(F28:F30,F33:F40,F42:F44)","v":0}]
[null,"Custos variáveis totais com utilização de energia fotovoltaica:",null,null,{"$f":"SUM(E33:E44)","v":0},{"$f":"SUM(F33:F44)","v":0}]
[null,null,null,null,"Valor total mensal","Valor total anual"]
[null,"Despesas totais com utilização de energia hidrelétrica:",null,null,{"$f":"SUM(E45,E22)","v":0},{"$f":"SUM(F45,F22)","v":{"$error":"#DIV/0!"}}]
[null,"Despesas totais com utilização de energia fotovoltaica:",null,null,{"$f":"SUM(E23,E46)","v":0},{"$f":"SUM(F23,F46)","v":{"$error":"#DIV/0!"}}]

{"sheet":"Custos de produção - Ano 3","index":6,"n_rows":49,"n_cols":6,"rows_kept":49,"cut":false,"hidden":false,"merged":[[16,1,16,3],[1,1,1,5],[2,1,2,5],[13,1,13,5],[14,1,14,3],[15,1,15,3],[29,1,29,3],[17,1,17,3],[18,1,18,3],[19,1,19,3],[20,1,20,3],[21,1,21,3],[22,1,22,3],[24,1,24,5],[25,1,25,5],[26,1,26,3],[27,1,27,3],[28,1,28,3],[30,1,30,5],[44,1,44,3],[45,1,45,3],[47,1,47,3],[48,1,48,3]]}
[]
[null,"Custos fixos - Ano 3"]
[null,"Mão de obra:"]
[null,"Item","Quantidade","Valor mensal","Valor total mensal","Valor total anual"]
[null,"Salário",null,null,{"$f":"D5*C5","v":0},{"$f":"E5*12","v":0}]
[null,"Décimo terceiro",null,null,{"$f":"D6*C6","v":0},0]
[null,"INSS",null,null,{"$f":"D7*C7","v":0},0]
[null,"Seguro acidente trabalho",null,null,{"$f":"D8*C8","v":0},0]
[null,"FGTS",null,null,0,0]
[null,"Férias",null,null,0,0]
[null,"Afastamentos/licenças",null,null,0,0]
[null,"Vale-transporte",null,null,0,0]
[null,"Vale-alimentação",null,null,0,0]
[null,"Demais despesas:"]
[null,"Item",null,null,"Valor total mensal","Valor total anual"]
[null,"Gastos com manutenção",null,null,{"$f":"F16/12","v":0}]
[null,"Imposto Territorial Rural - ITR",null,null,0]
[null,"Fundo de Assistência ao Trabalhador Rural - FUNRURAL",null,null,0]
[null,"Emprestimo rural ",null,null,0]
[null,"Depreciação SEM o uso de energia fotovoltaica",null,null,0,{"$f":"'Investimento inicial'!G42","v":{"$error":"#DIV/0!"}}]
[null,"Depreciação COM o uso de energia fotoltaica",null,null,0,{"$f":"'Investimento inicial'!G43","v":{"$error":"#DIV/0!"}}]
[null,"Custos fixos totais com o uso de energia hidrelétrica:",null,null,{"$f":"SUM(E5:E13,E16:E20)","v":0},{"$f":"SUM(F5:F13,F16:F20)","v":{"$error":"#DIV/0!"}}]
[null,"Custos fixos totais com o uso de energia fotovoltacia:",null,null,{"$f":"SUM(E5:E13,E16:E19,E21)","v":0},{"$f":"SUM(F5:F13,F16:F19,F21)","v":{"$error":"#DIV/0!"}}]
[]
[null,"Custos variáveis - Ano 3"]
[null,"Mão de obra:"]
[null,"Item",null,null,"Valor total mensal","Valor total anual"]
[null,"Mão-de-obra especializada ",null,null,null,{"$f":"E28*12","v":0}]
[null,"Mão de obra temporária",null,null,null,{"$f":"E29*12","v":0}]
[null,"Alimentação - Mão-de-obra temporária",null,null,null,{"$f":"E30*12","v":0}]
[null,"Produção:"]
[null,"Item","Quantidade","Preço unitário","Valor total mensal","Valor total anual"]
[null,"Compra de alevinos ",null,null,{"$f":"C33*D33","v":0},{"$f":"E33*12","v":0}]
[null,"Testes concentração de amônia",null,null,{"$f":"C34*D34","v":0},{"$f":"E34*12","v":0}]
[null,"Testes concentração de nitrito",null,null,{"$f":"C35*D35","v":0},{"$f":"E35*12","v":0}]
[null,"Testes alcalinidade",null,null,{"$f":"C36*D36","v":0},{"$f":"E36*12","v":0}]
[null,"Ração ",null,null,{"$f":"C37*D37","v":0},{"$f":"E37*12","v":0}]
[null,"Fonte de Carbono",null,null,{"$f":"C38*D38","v":0},0]
[null,"Cal hidratada ",null,null,0,0]
[null,"Conta de eletricidade (kWh)",{"$f":"'Consumo de energia'!H7","v":0},null,0,0]
[null,"Conta de Eletricidade com uso da Energia Fotovoltaica (kWh)",{"$f":"'Consumo de energia'!H11","v":0},null,0,0]
[null,"Reposição de água ",null,null,0,0]
[null,"Tarifa esgoto ",null,null,0,0]
[null,"Diesel para o gerador",null,null,0,0]
[null,"Custos variáveis totais com utilização de energia hidrelétrica:",null,null,{"$f":"SUM(E28:E30,E33:E40,E42:E44)","v":0},{"$f":"SUM(F28:F30,F33:F40,F42:F44)","v":0}]
[null,"Custos variáveis totais com utilização de energia fotovoltaica:",null,null,{"$f":"SUM(E33:E44)","v":0},{"$f":"SUM(F33:F44)","v":0}]
[null,null,null,null,"Valor total mensal","Valor total anual"]
[null,"Despesas totais com utilização de energia hidrelétrica:",null,null,{"$f":"SUM(E45,E22)","v":0},{"$f":"SUM(F45,F22)","v":{"$error":"#DIV/0!"}}]
[null,"Despesas totais com utilização de energia fotovoltaica:",null,null,{"$f":"SUM(E23,E46)","v":0},{"$f":"SUM(F23,F46)","v":{"$error":"#DIV/0!"}}]

{"sheet":"Custos de produção - Ano 4","index":7,"n_rows":49,"n_cols":6,"rows_kept":49,"cut":false,"hidden":false,"merged":[[16,1,16,3],[1,1,1,5],[2,1,2,5],[13,1,13,5],[14,1,14,3],[15,1,15,3],[29,1,29,3],[17,1,17,3],[18,1,18,3],[19,1,19,3],[20,1,20,3],[21,1,21,3],[22,1,22,3],[24,1,24,5],[25,1,25,5],[26,1,26,3],[27,1,27,3],[28,1,28,3],[30,1,30,5],[44,1,44,3],[45,1,45,3],[47,1,47,3],[48,1,48,3]]}
[]
[null,"Custos fixos - Ano 4"]
[null,"Mão de obra:"]
[null,"Item","Quantidade","Valor mensal","Valor total mensal","Valor total anual"]
[null,"Salário",null,null,{"$f":"D5*C5","v":0},{"$f":"E5*12","v":0}]
[null,"Décimo terceiro",null,null,{"$f":"D6*C6","v":0},0]
[null,"INSS",null,null,{"$f":"D7*C7","v":0},0]
[null,"Seguro acidente trabalho",null,null,{"$f":"D8*C8","v":0},0]
[null,"FGTS",null,null,0,0]
[null,"Férias",null,null,0,0]
[null,"Afastamentos/licenças",null,null,0,0]
[null,"Vale-transporte",null,null,0,0]
[null,"Vale-alimentação",null,null,0,0]
[null,"Demais despesas:"]
[null,"Item",null,null,"Valor total mensal","Valor total anual"]
[null,"Gastos com manutenção",null,null,{"$f":"F16/12","v":0}]
[null,"Imposto Territorial Rural - ITR",null,null,0]
[null,"Fundo de Assistência ao Trabalhador Rural - FUNRURAL",null,null,0]
[null,"Emprestimo rural ",null,null,0]
[null,"Depreciação SEM o uso de energia fotovoltaica",null,null,0,{"$f":"'Investimento inicial'!G42","v":{"$error":"#DIV/0!"}}]
[null,"Depreciação COM o uso de energia fotoltaica",null,null,0,{"$f":"'Investimento inicial'!G43","v":{"$error":"#DIV/0!"}}]
[null,"Custos fixos totais com o uso de energia hidrelétrica:",null,null,{"$f":"SUM(E5:E13,E16:E20)","v":0},{"$f":"SUM(F5:F13,F16:F20)","v":{"$error":"#DIV/0!"}}]
[null,"Custos fixos totais com o uso de energia fotovoltacia:",null,null,{"$f":"SUM(E5:E13,E16:E19,E21)","v":0},{"$f":"SUM(F5:F13,F16:F19,F21)","v":{"$error":"#DIV/0!"}}]
[]
[null,"Custos variáveis - Ano 4"]
[null,"Mão de obra:"]
[null,"Item",null,null,"Valor total mensal","Valor total anual"]
[null,"Mão-de-obra especializada ",null,null,null,{"$f":"E28*12","v":0}]
[null,"Mão de obra temporária",null,null,null,{"$f":"E29*12","v":0}]
[null,"Alimentação - Mão-de-obra temporária",null,null,null,{"$f":"E30*12","v":0}]
[null,"Produção:"]
[null,"Item","Quantidade","Preço unitário","Valor total mensal","Valor total anual"]
[null,"Compra de alevinos ",null,null,{"$f":"C33*D33","v":0},{"$f":"E33*12","v":0}]
[null,"Testes concentração de amônia",null,null,{"$f":"C34*D34","v":0},{"$f":"E34*12","v":0}]
[null,"Testes concentração de nitrito",null,null,{"$f":"C35*D35","v":0},{"$f":"E35*12","v":0}]
[null,"Testes alcalinidade",null,null,{"$f":"C36*D36","v":0},{"$f":"E36*12","v":0}]
[null,"Ração ",null,null,{"$f":"C37*D37","v":0},{"$f":"E37*12","v":0}]
[null,"Fonte de Carbono",null,null,{"$f":"C38*D38","v":0},0]
[null,"Cal hidratada ",null,null,0,0]
[null,"Conta de eletricidade (kWh)",{"$f":"'Consumo de energia'!H7","v":0},null,0,0]
[null,"Conta de Eletricidade com uso da Energia Fotovoltaica (kWh)",{"$f":"'Consumo de energia'!H11","v":0},null,0,0]
[null,"Reposição de água ",null,null,0,0]
[null,"Tarifa esgoto ",null,null,0,0]
[null,"Diesel para o gerador",null,null,0,0]
[null,"Custos variáveis totais com utilização de energia hidrelétrica:",null,null,{"$f":"SUM(E28:E30,E33:E40,E42:E44)","v":0},{"$f":"SUM(F28:F30,F33:F40,F42:F44)","v":0}]
[null,"Custos variáveis totais com utilização de energia fotovoltaica:",null,null,{"$f":"SUM(E33:E44)","v":0},{"$f":"SUM(F33:F44)","v":0}]
[null,null,null,null,"Valor total mensal","Valor total anual"]
[null,"Despesas totais com utilização de energia hidrelétrica:",null,null,{"$f":"SUM(E45,E22)","v":0},{"$f":"SUM(F45,F22)","v":{"$error":"#DIV/0!"}}]
[null,"Despesas totais com utilização de energia fotovoltaica:",null,null,{"$f":"SUM(E23,E46)","v":0},{"$f":"SUM(F23,F46)","v":{"$error":"#DIV/0!"}}]

{"sheet":"Custos de produção - Ano 5","index":8,"n_rows":49,"n_cols":6,"rows_kept":49,"cut":false,"hidden":false,"merged":[[16,1,16,3],[1,1,1,5],[2,1,2,5],[13,1,13,5],[14,1,14,3],[15,1,15,3],[29,1,29,3],[17,1,17,3],[18,1,18,3],[19,1,19,3],[20,1,20,3],[21,1,21,3],[22,1,22,3],[24,1,24,5],[25,1,25,5],[26,1,26,3],[27,1,27,3],[28,1,28,3],[30,1,30,5],[44,1,44,3],[45,1,45,3],[47,1,47,3],[48,1,48,3]]}
[]
[null,"Custos fixos - Ano 5"]
[null,"Mão de obra:"]
[null,"Item","Quantidade","Valor mensal","Valor total mensal","Valor total anual"]
[null,"Salário",null,null,{"$f":"D5*C5","v":0},{"$f":"E5*12","v":0}]
[null,"Décimo terceiro",null,null,{"$f":"D6*C6","v":0},0]
[null,"INSS",null,null,{"$f":"D7*C7","v":0},0]
[null,"Seguro acidente trabalho",null,null,{"$f":"D8*C8","v":0},0]
[null,"FGTS",null,null,0,0]
[null,"Férias",null,null,0,0]
[null,"Afastamentos/licenças",null,null,0,0]
[null,"Vale-transporte",null,null,0,0]
[null,"Vale-alimentação",null,null,0,0]
[null,"Demais despesas:"]
[null,"Item",null,null,"Valor total mensal","Valor total anual"]
[null,"Gastos com manutenção",null,null,{"$f":"F16/12","v":0}]
[null,"Imposto Territorial Rural - ITR",null,null,0]
[null,"Fundo de Assistência ao Trabalhador Rural - FUNRURAL",null,null,0]
[null,"Emprestimo rural ",null,null,0]
[null,"Depreciação SEM o uso de energia fotovoltaica",null,null,0,{"$f":"'Investimento inicial'!G42","v":{"$error":"#DIV/0!"}}]
[null,"Depreciação COM o uso de energia fotoltaica",null,null,0,{"$f":"'Investimento inicial'!G43","v":{"$error":"#DIV/0!"}}]
[null,"Custos fixos totais com o uso de energia hidrelétrica:",null,null,{"$f":"SUM(E5:E13,E16:E20)","v":0},{"$f":"SUM(F5:F13,F16:F20)","v":{"$error":"#DIV/0!"}}]
[null,"Custos fixos totais com o uso de energia fotovoltacia:",null,null,{"$f":"SUM(E5:E13,E16:E19,E21)","v":0},{"$f":"SUM(F5:F13,F16:F19,F21)","v":{"$error":"#DIV/0!"}}]
[]
[null,"Custos variáveis - Ano 5"]
[null,"Mão de obra:"]
[null,"Item",null,null,"Valor total mensal","Valor total anual"]
[null,"Mão-de-obra especializada ",null,null,null,{"$f":"E28*12","v":0}]
[null,"Mão de obra temporária",null,null,null,{"$f":"E29*12","v":0}]
[null,"Alimentação - Mão-de-obra temporária",null,null,null,{"$f":"E30*12","v":0}]
[null,"Produção:"]
[null,"Item","Quantidade","Preço unitário","Valor total mensal","Valor total anual"]
[null,"Compra de alevinos ",null,null,{"$f":"C33*D33","v":0},{"$f":"E33*12","v":0}]
[null,"Testes concentração de amônia",null,null,{"$f":"C34*D34","v":0},{"$f":"E34*12","v":0}]
[null,"Testes concentração de nitrito",null,null,{"$f":"C35*D35","v":0},{"$f":"E35*12","v":0}]
[null,"Testes alcalinidade",null,null,{"$f":"C36*D36","v":0},{"$f":"E36*12","v":0}]
[null,"Ração ",null,null,{"$f":"C37*D37","v":0},{"$f":"E37*12","v":0}]
[null,"Fonte de Carbono",null,null,{"$f":"C38*D38","v":0},0]
[null,"Cal hidratada ",null,null,0,0]
[null,"Conta de eletricidade (kWh)",{"$f":"'Consumo de energia'!H7","v":0},null,0,0]
[null,"Conta de Eletricidade com uso da Energia Fotovoltaica (kWh)",{"$f":"'Consumo de energia'!H11","v":0},null,0,0]
[null,"Reposição de água ",null,null,0,0]
[null,"Tarifa esgoto ",null,null,0,0]
[null,"Diesel para o gerador",null,null,0,0]
[null,"Custos variáveis totais com utilização de energia hidrelétrica:",null,null,{"$f":"SUM(E28:E30,E33:E40,E42:E44)","v":0},{"$f":"SUM(F28:F30,F33:F40,F42:F44)","v":0}]
[null,"Custos variáveis totais com utilização de energia fotovoltaica:",null,null,{"$f":"SUM(E33:E44)","v":0},{"$f":"SUM(F33:F44)","v":0}]
[null,null,null,null,"Valor total mensal","Valor total anual"]
[null,"Despesas totais com utilização de energia hidrelétrica:",null,null,{"$f":"SUM(E45,E22)","v":0},{"$f":"SUM(F45,F22)","v":{"$error":"#DIV/0!"}}]
[null,"Despesas totais com utilização de energia fotovoltaica:",null,null,{"$f":"SUM(E23,E46)","v":0},{"$f":"SUM(F23,F46)","v":{"$error":"#DIV/0!"}}]

{"sheet":"Custos de produção - Ano 6","index":9,"n_rows":49,"n_cols":6,"rows_kept":49,"cut":false,"hidden":false,"merged":[[16,1,16,3],[1,1,1,5],[2,1,2,5],[13,1,13,5],[14,1,14,3],[15,1,15,3],[29,1,29,3],[17,1,17,3],[18,1,18,3],[19,1,19,3],[20,1,20,3],[21,1,21,3],[22,1,22,3],[24,1,24,5],[25,1,25,5],[26,1,26,3],[27,1,27,3],[28,1,28,3],[30,1,30,5],[44,1,44,3],[45,1,45,3],[47,1,47,3],[48,1,48,3]]}
[]
[null,"Custos fixos - Ano 6"]
[null,"Mão de obra:"]
[null,"Item","Quantidade","Valor mensal","Valor total mensal","Valor total anual"]
[null,"Salário",null,null,{"$f":"D5*C5","v":0},{"$f":"E5*12","v":0}]
[null,"Décimo terceiro",null,null,{"$f":"D6*C6","v":0},0]
[null,"INSS",null,null,{"$f":"D7*C7","v":0},0]
[null,"Seguro acidente trabalho",null,null,{"$f":"D8*C8","v":0},0]
[null,"FGTS",null,null,0,0]
[null,"Férias",null,null,0,0]
[null,"Afastamentos/licenças",null,null,0,0]
[null,"Vale-transporte",null,null,0,0]
[null,"Vale-alimentação",null,null,0,0]
[null,"Demais despesas:"]
[null,"Item",null,null,"Valor total mensal","Valor total anual"]
[null,"Gastos com manutenção",null,null,{"$f":"F16/12","v":0}]
[null,"Imposto Territorial Rural - ITR",null,null,0]
[null,"Fundo de Assistência ao Trabalhador Rural - FUNRURAL",null,null,0]
[null,"Emprestimo rural ",null,null,0]
[null,"Depreciação SEM o uso de energia fotovoltaica",null,null,0,{"$f":"'Investimento inicial'!G42","v":{"$error":"#DIV/0!"}}]
[null,"Depreciação COM o uso de energia fotoltaica",null,null,0,{"$f":"'Investimento inicial'!G43","v":{"$error":"#DIV/0!"}}]
[null,"Custos fixos totais com o uso de energia hidrelétrica:",null,null,{"$f":"SUM(E5:E13,E16:E20)","v":0},{"$f":"SUM(F5:F13,F16:F20)","v":{"$error":"#DIV/0!"}}]
[null,"Custos fixos totais com o uso de energia fotovoltacia:",null,null,{"$f":"SUM(E5:E13,E16:E19,E21)","v":0},{"$f":"SUM(F5:F13,F16:F19,F21)","v":{"$error":"#DIV/0!"}}]
[]
[null,"Custos variáveis - Ano 6"]
[null,"Mão de obra:"]
[null,"Item",null,null,"Valor total mensal","Valor total anual"]
[null,"Mão-de-obra especializada ",null,null,null,{"$f":"E28*12","v":0}]
[null,"Mão de obra temporária",null,null,null,{"$f":"E29*12","v":0}]
[null,"Alimentação - Mão-de-obra temporária",null,null,null,{"$f":"E30*12","v":0}]
[null,"Produção:"]
[null,"Item","Quantidade","Preço unitário","Valor total mensal","Valor total anual"]
[null,"Compra de alevinos ",null,null,{"$f":"C33*D33","v":0},{"$f":"E33*12","v":0}]
[null,"Testes concentração de amônia",null,null,{"$f":"C34*D34","v":0},{"$f":"E34*12","v":0}]
[null,"Testes concentração de nitrito",null,null,{"$f":"C35*D35","v":0},{"$f":"E35*12","v":0}]
[null,"Testes alcalinidade",null,null,{"$f":"C36*D36","v":0},{"$f":"E36*12","v":0}]
[null,"Ração ",null,null,{"$f":"C37*D37","v":0},{"$f":"E37*12","v":0}]
[null,"Fonte de Carbono",null,null,{"$f":"C38*D38","v":0},0]
[null,"Cal hidratada ",null,null,0,0]
[null,"Conta de eletricidade (kWh)",{"$f":"'Consumo de energia'!H7","v":0},null,0,0]
[null,"Conta de Eletricidade com uso da Energia Fotovoltaica (kWh)",{"$f":"'Consumo de energia'!H11","v":0},null,0,0]
[null,"Reposição de água ",null,null,0,0]
[null,"Tarifa esgoto ",null,null,0,0]
[null,"Diesel para o gerador",null,null,0,0]
[null,"Custos variáveis totais com utilização de energia hidrelétrica:",null,null,{"$f":"SUM(E28:E30,E33:E40,E42:E44)","v":0},{"$f":"SUM(F28:F30,F33:F40,F42:F44)","v":0}]
[null,"Custos variáveis totais com utilização de energia fotovoltaica:",null,null,{"$f":"SUM(E33:E44)","v":0},{"$f":"SUM(F33:F44)","v":0}]
[null,null,null,null,"Valor total mensal","Valor total anual"]
[null,"Despesas totais com utilização de energia hidrelétrica:",null,null,{"$f":"SUM(E45,E22)","v":0},{"$f":"SUM(F45,F22)","v":{"$error":"#DIV/0!"}}]
[null,"Despesas totais com utilização de energia fotovoltaica:",null,null,{"$f":"SUM(E23,E46)","v":0},{"$f":"SUM(F23,F46)","v":{"$error":"#DIV/0!"}}]

{"sheet":"Custos de produção - Ano 7","index":10,"n_rows":49,"n_cols":6,"rows_kept":49,"cut":false,"hidden":false,"merged":[[16,1,16,3],[1,1,1,5],[2,1,2,5],[13,1,13,5],[14,1,14,3],[15,1,15,3],[29,1,29,3],[17,1,17,3],[18,1,18,3],[19,1,19,3],[20,1,20,3],[21,1,21,3],[22,1,22,3],[24,1,24,5],[25,1,25,5],[26,1,26,3],[27,1,27,3],[28,1,28,3],[30,1,30,5],[44,1,44,3],[45,1,45,3],[47,1,47,3],[48,1,48,3]]}
[]
[null,"Custos fixos - Ano 7"]
[null,"Mão de obra:"]
[null,"Item","Quantidade","Valor mensal","Valor total mensal","Valor total anual"]
[null,"Salário",null,null,{"$f":"D5*C5","v":0},{"$f":"E5*12","v":0}]
[null,"Décimo terceiro",null,null,{"$f":"D6*C6","v":0},0]
[null,"INSS",null,null,{"$f":"D7*C7","v":0},0]
[null,"Seguro acidente trabalho",null,null,{"$f":"D8*C8","v":0},0]
[null,"FGTS",null,null,0,0]
[null,"Férias",null,null,0,0]
[null,"Afastamentos/licenças",null,null,0,0]
[null,"Vale-transporte",null,null,0,0]
[null,"Vale-alimentação",null,null,0,0]
[null,"Demais despesas:"]
[null,"Item",null,null,"Valor total mensal","Valor total anual"]
[null,"Gastos com manutenção",null,null,{"$f":"F16/12","v":0}]
[null,"Imposto Territorial Rural - ITR",null,null,0]
[null,"Fundo de Assistência ao Trabalhador Rural - FUNRURAL",null,null,0]
[null,"Emprestimo rural ",null,null,0]
[null,"Depreciação SEM o uso de energia fotovoltaica",null,null,0,{"$f":"'Investimento inicial'!G42","v":{"$error":"#DIV/0!"}}]
[null,"Depreciação COM o uso de energia fotoltaica",null,null,0,{"$f":"'Investimento inicial'!G43","v":{"$error":"#DIV/0!"}}]
[null,"Custos fixos totais com o uso de energia hidrelétrica:",null,null,{"$f":"SUM(E5:E13,E16:E20)","v":0},{"$f":"SUM(F5:F13,F16:F20)","v":{"$error":"#DIV/0!"}}]
[null,"Custos fixos totais com o uso de energia fotovoltacia:",null,null,{"$f":"SUM(E5:E13,E16:E19,E21)","v":0},{"$f":"SUM(F5:F13,F16:F19,F21)","v":{"$error":"#DIV/0!"}}]
[]
[null,"Custos variáveis - Ano 7"]
[null,"Mão de obra:"]
[null,"Item",null,null,"Valor total mensal","Valor total anual"]
[null,"Mão-de-obra especializada ",null,null,null,{"$f":"E28*12","v":0}]
[null,"Mão de obra temporária",null,null,null,{"$f":"E29*12","v":0}]
[null,"Alimentação - Mão-de-obra temporária",null,null,null,{"$f":"E30*12","v":0}]
[null,"Produção:"]
[null,"Item","Quantidade","Preço unitário","Valor total mensal","Valor total anual"]
[null,"Compra de alevinos ",null,null,{"$f":"C33*D33","v":0},{"$f":"E33*12","v":0}]
[null,"Testes concentração de amônia",null,null,{"$f":"C34*D34","v":0},{"$f":"E34*12","v":0}]
[null,"Testes concentração de nitrito",null,null,{"$f":"C35*D35","v":0},{"$f":"E35*12","v":0}]
[null,"Testes alcalinidade",null,null,{"$f":"C36*D36","v":0},{"$f":"E36*12","v":0}]
[null,"Ração ",null,null,{"$f":"C37*D37","v":0},{"$f":"E37*12","v":0}]
[null,"Fonte de Carbono",null,null,{"$f":"C38*D38","v":0},0]
[null,"Cal hidratada ",null,null,0,0]
[null,"Conta de eletricidade (kWh)",{"$f":"'Consumo de energia'!H7","v":0},null,0,0]
[null,"Conta de Eletricidade com uso da Energia Fotovoltaica (kWh)",{"$f":"'Consumo de energia'!H11","v":0},null,0,0]
[null,"Reposição de água ",null,null,0,0]
[null,"Tarifa esgoto ",null,null,0,0]
[null,"Diesel para o gerador",null,null,0,0]
[null,"Custos variáveis totais com utilização de energia hidrelétrica:",null,null,{"$f":"SUM(E28:E30,E33:E40,E42:E44)","v":0},{"$f":"SUM(F28:F30,F33:F40,F42:F44)","v":0}]
[null,"Custos variáveis totais com utilização de energia fotovoltaica:",null,null,{"$f":"SUM(E33:E44)","v":0},{"$f":"SUM(F33:F44)","v":0}]
[null,null,null,null,"Valor total mensal","Valor total anual"]
[null,"Despesas totais com utilização de energia hidrelétrica:",null,null,{"$f":"SUM(E45,E22)","v":0},{"$f":"SUM(F45,F22)","v":{"$error":"#DIV/0!"}}]
[null,"Despesas totais com utilização de energia fotovoltaica:",null,null,{"$f":"SUM(E23,E46)","v":0},{"$f":"SUM(F23,F46)","v":{"$error":"#DIV/0!"}}]

{"sheet":"Custos de produção - Ano 8","index":11,"n_rows":49,"n_cols":6,"rows_kept":49,"cut":false,"hidden":false,"merged":[[16,1,16,3],[1,1,1,5],[2,1,2,5],[13,1,13,5],[14,1,14,3],[15,1,15,3],[29,1,29,3],[17,1,17,3],[18,1,18,3],[19,1,19,3],[20,1,20,3],[21,1,21,3],[22,1,22,3],[24,1,24,5],[25,1,25,5],[26,1,26,3],[27,1,27,3],[28,1,28,3],[30,1,30,5],[44,1,44,3],[45,1,45,3],[47,1,47,3],[48,1,48,3]]}
[]
[null,"Custos fixos - Ano 8"]
[null,"Mão de obra:"]
[null,"Item","Quantidade","Valor mensal","Valor total mensal","Valor total anual"]
[null,"Salário",null,null,{"$f":"D5*C5","v":0},{"$f":"E5*12","v":0}]
[null,"Décimo terceiro",null,null,{"$f":"D6*C6","v":0},0]
[null,"INSS",null,null,{"$f":"D7*C7","v":0},0]
[null,"Seguro acidente trabalho",null,null,{"$f":"D8*C8","v":0},0]
[null,"FGTS",null,null,0,0]
[null,"Férias",null,null,0,0]
[null,"Afastamentos/licenças",null,null,0,0]
[null,"Vale-transporte",null,null,0,0]
[null,"Vale-alimentação",null,null,0,0]
[null,"Demais despesas:"]
[null,"Item",null,null,"Valor total mensal","Valor total anual"]
[null,"Gastos com manutenção",null,null,{"$f":"F16/12","v":0}]
[null,"Imposto Territorial Rural - ITR",null,null,0]
[null,"Fundo de Assistência ao Trabalhador Rural - FUNRURAL",null,null,0]
[null,"Emprestimo rural ",null,null,0]
[null,"Depreciação SEM o uso de energia fotovoltaica",null,null,0,{"$f":"'Investimento inicial'!G42","v":{"$error":"#DIV/0!"}}]
[null,"Depreciação COM o uso de energia fotoltaica",null,null,0,{"$f":"'Investimento inicial'!G43","v":{"$error":"#DIV/0!"}}]
[null,"Custos fixos totais com o uso de energia hidrelétrica:",null,null,{"$f":"SUM(E5:E13,E16:E20)","v":0},{"$f":"SUM(F5:F13,F16:F20)","v":{"$error":"#DIV/0!"}}]
[null,"Custos fixos totais com o uso de energia fotovoltacia:",null,null,{"$f":"SUM(E5:E13,E16:E19,E21)","v":0},{"$f":"SUM(F5:F13,F16:F19,F21)","v":{"$error":"#DIV/0!"}}]
[]
[null,"Custos variáveis - Ano 8"]
[null,"Mão de obra:"]
[null,"Item",null,null,"Valor total mensal","Valor total anual"]
[null,"Mão-de-obra especializada ",null,null,null,{"$f":"E28*12","v":0}]
[null,"Mão de obra temporária",null,null,null,{"$f":"E29*12","v":0}]
[null,"Alimentação - Mão-de-obra temporária",null,null,null,{"$f":"E30*12","v":0}]
[null,"Produção:"]
[null,"Item","Quantidade","Preço unitário","Valor total mensal","Valor total anual"]
[null,"Compra de alevinos ",null,null,{"$f":"C33*D33","v":0},{"$f":"E33*12","v":0}]
[null,"Testes concentração de amônia",null,null,{"$f":"C34*D34","v":0},{"$f":"E34*12","v":0}]
[null,"Testes concentração de nitrito",null,null,{"$f":"C35*D35","v":0},{"$f":"E35*12","v":0}]
[null,"Testes alcalinidade",null,null,{"$f":"C36*D36","v":0},{"$f":"E36*12","v":0}]
[null,"Ração ",null,null,{"$f":"C37*D37","v":0},{"$f":"E37*12","v":0}]
[null,"Fonte de Carbono",null,null,{"$f":"C38*D38","v":0},0]
[null,"Cal hidratada ",null,null,0,0]
[null,"Conta de eletricidade (kWh)",{"$f":"'Consumo de energia'!H7","v":0},null,0,0]
[null,"Conta de Eletricidade com uso da Energia Fotovoltaica (kWh)",{"$f":"'Consumo de energia'!H11","v":0},null,0,0]
[null,"Reposição de água ",null,null,0,0]
[null,"Tarifa esgoto ",null,null,0,0]
[null,"Diesel para o gerador",null,null,0,0]
[null,"Custos variáveis totais com utilização de energia hidrelétrica:",null,null,{"$f":"SUM(E28:E30,E33:E40,E42:E44)","v":0},{"$f":"SUM(F28:F30,F33:F40,F42:F44)","v":0}]
[null,"Custos variáveis totais com utilização de energia fotovoltaica:",null,null,{"$f":"SUM(E33:E44)","v":0},{"$f":"SUM(F33:F44)","v":0}]
[null,null,null,null,"Valor total mensal","Valor total anual"]
[null,"Despesas totais com utilização de energia hidrelétrica:",null,null,{"$f":"SUM(E45,E22)","v":0},{"$f":"SUM(F45,F22)","v":{"$error":"#DIV/0!"}}]
[null,"Despesas totais com utilização de energia fotovoltaica:",null,null,{"$f":"SUM(E23,E46)","v":0},{"$f":"SUM(F23,F46)","v":{"$error":"#DIV/0!"}}]

{"sheet":"Custos de produção - Ano 9","index":12,"n_rows":49,"n_cols":6,"rows_kept":49,"cut":false,"hidden":false,"merged":[[16,1,16,3],[1,1,1,5],[2,1,2,5],[13,1,13,5],[14,1,14,3],[15,1,15,3],[29,1,29,3],[17,1,17,3],[18,1,18,3],[19,1,19,3],[20,1,20,3],[21,1,21,3],[22,1,22,3],[24,1,24,5],[25,1,25,5],[26,1,26,3],[27,1,27,3],[28,1,28,3],[30,1,30,5],[44,1,44,3],[45,1,45,3],[47,1,47,3],[48,1,48,3]]}
[]
[null,"Custos fixos - Ano 9"]
[null,"Mão de obra:"]
[null,"Item","Quantidade","Valor mensal","Valor total mensal","Valor total anual"]
[null,"Salário",null,null,{"$f":"D5*C5","v":0},{"$f":"E5*12","v":0}]
[null,"Décimo terceiro",null,null,{"$f":"D6*C6","v":0},0]
[null,"INSS",null,null,{"$f":"D7*C7","v":0},0]
[null,"Seguro acidente trabalho",null,null,{"$f":"D8*C8","v":0},0]
[null,"FGTS",null,null,0,0]
[null,"Férias",null,null,0,0]
[null,"Afastamentos/licenças",null,null,0,0]
[null,"Vale-transporte",null,null,0,0]
[null,"Vale-alimentação",null,null,0,0]
[null,"Demais despesas:"]
[null,"Item",null,null,"Valor total mensal","Valor total anual"]
[null,"Gastos com manutenção",null,null,{"$f":"F16/12","v":0}]
[null,"Imposto Territorial Rural - ITR",null,null,0]
[null,"Fundo de Assistência ao Trabalhador Rural - FUNRURAL",null,null,0]
[null,"Emprestimo rural ",null,null,0]
[null,"Depreciação SEM o uso de energia fotovoltaica",null,null,0,{"$f":"'Investimento inicial'!G42","v":{"$error":"#DIV/0!"}}]
[null,"Depreciação COM o uso de energia fotoltaica",null,null,0,{"$f":"'Investimento inicial'!G43","v":{"$error":"#DIV/0!"}}]
[null,"Custos fixos totais com o uso de energia hidrelétrica:",null,null,{"$f":"SUM(E5:E13,E16:E20)","v":0},{"$f":"SUM(F5:F13,F16:F20)","v":{"$error":"#DIV/0!"}}]
[null,"Custos fixos totais com o uso de energia fotovoltacia:",null,null,{"$f":"SUM(E5:E13,E16:E19,E21)","v":0},{"$f":"SUM(F5:F13,F16:F19,F21)","v":{"$error":"#DIV/0!"}}]
[]
[null,"Custos variáveis - Ano 9"]
[null,"Mão de obra:"]
[null,"Item",null,null,"Valor total mensal","Valor total anual"]
[null,"Mão-de-obra especializada ",null,null,null,{"$f":"E28*12","v":0}]
[null,"Mão de obra temporária",null,null,null,{"$f":"E29*12","v":0}]
[null,"Alimentação - Mão-de-obra temporária",null,null,null,{"$f":"E30*12","v":0}]
[null,"Produção:"]
[null,"Item","Quantidade","Preço unitário","Valor total mensal","Valor total anual"]
[null,"Compra de alevinos ",null,null,{"$f":"C33*D33","v":0},{"$f":"E33*12","v":0}]
[null,"Testes concentração de amônia",null,null,{"$f":"C34*D34","v":0},{"$f":"E34*12","v":0}]
[null,"Testes concentração de nitrito",null,null,{"$f":"C35*D35","v":0},{"$f":"E35*12","v":0}]
[null,"Testes alcalinidade",null,null,{"$f":"C36*D36","v":0},{"$f":"E36*12","v":0}]
[null,"Ração ",null,null,{"$f":"C37*D37","v":0},{"$f":"E37*12","v":0}]
[null,"Fonte de Carbono",null,null,{"$f":"C38*D38","v":0},0]
[null,"Cal hidratada ",null,null,0,0]
[null,"Conta de eletricidade (kWh)",{"$f":"'Consumo de energia'!H7","v":0},null,0,0]
[null,"Conta de Eletricidade com uso da Energia Fotovoltaica (kWh)",{"$f":"'Consumo de energia'!H11","v":0},null,0,0]
[null,"Reposição de água ",null,null,0,0]
[null,"Tarifa esgoto ",null,null,0,0]
[null,"Diesel para o gerador",null,null,0,0]
[null,"Custos variáveis totais com utilização de energia hidrelétrica:",null,null,{"$f":"SUM(E28:E30,E33:E40,E42:E44)","v":0},{"$f":"SUM(F28:F30,F33:F40,F42:F44)","v":0}]
[null,"Custos variáveis totais com utilização de energia fotovoltaica:",null,null,{"$f":"SUM(E33:E44)","v":0},{"$f":"SUM(F33:F44)","v":0}]
[null,null,null,null,"Valor total mensal","Valor total anual"]
[null,"Despesas totais com utilização de energia hidrelétrica:",null,null,{"$f":"SUM(E45,E22)","v":0},{"$f":"SUM(F45,F22)","v":{"$error":"#DIV/0!"}}]
[null,"Despesas totais com utilização de energia fotovoltaica:",null,null,{"$f":"SUM(E23,E46)","v":0},{"$f":"SUM(F23,F46)","v":{"$error":"#DIV/0!"}}]

{"sheet":"Custos de produção - Ano 10","index":13,"n_rows":49,"n_cols":6,"rows_kept":49,"cut":false,"hidden":false,"merged":[[16,1,16,3],[1,1,1,5],[2,1,2,5],[13,1,13,5],[14,1,14,3],[15,1,15,3],[29,1,29,3],[17,1,17,3],[18,1,18,3],[19,1,19,3],[20,1,20,3],[21,1,21,3],[22,1,22,3],[24,1,24,5],[25,1,25,5],[26,1,26,3],[27,1,27,3],[28,1,28,3],[30,1,30,5],[44,1,44,3],[45,1,45,3],[47,1,47,3],[48,1,48,3]]}
[]
[null,"Custos fixos - Ano 10"]
[null,"Mão de obra:"]
[null,"Item","Quantidade","Valor mensal","Valor total mensal","Valor total anual"]
[null,"Salário",null,null,{"$f":"D5*C5","v":0},{"$f":"E5*12","v":0}]
[null,"Décimo terceiro",null,null,{"$f":"D6*C6","v":0},0]
[null,"INSS",null,null,{"$f":"D7*C7","v":0},0]
[null,"Seguro acidente trabalho",null,null,{"$f":"D8*C8","v":0},0]
[null,"FGTS",null,null,0,0]
[null,"Férias",null,null,0,0]
[null,"Afastamentos/licenças",null,null,0,0]
[null,"Vale-transporte",null,null,0,0]
[null,"Vale-alimentação",null,null,0,0]
[null,"Demais despesas:"]
[null,"Item",null,null,"Valor total mensal","Valor total anual"]
[null,"Gastos com manutenção",null,null,{"$f":"F16/12","v":0}]
[null,"Imposto Territorial Rural - ITR",null,null,0]
[null,"Fundo de Assistência ao Trabalhador Rural - FUNRURAL",null,null,0]
[null,"Emprestimo rural ",null,null,0]
[null,"Depreciação SEM o uso de energia fotovoltaica",null,null,0,{"$f":"'Investimento inicial'!G42","v":{"$error":"#DIV/0!"}}]
[null,"Depreciação COM o uso de energia fotoltaica",null,null,0,{"$f":"'Investimento inicial'!G43","v":{"$error":"#DIV/0!"}}]
[null,"Custos fixos totais com o uso de energia hidrelétrica:",null,null,{"$f":"SUM(E5:E13,E16:E20)","v":0},{"$f":"SUM(F5:F13,F16:F20)","v":{"$error":"#DIV/0!"}}]
[null,"Custos fixos totais com o uso de energia fotovoltacia:",null,null,{"$f":"SUM(E5:E13,E16:E19,E21)","v":0},{"$f":"SUM(F5:F13,F16:F19,F21)","v":{"$error":"#DIV/0!"}}]
[]
[null,"Custos variáveis - Ano 10"]
[null,"Mão de obra:"]
[null,"Item",null,null,"Valor total mensal","Valor total anual"]
[null,"Mão-de-obra especializada ",null,null,null,{"$f":"E28*12","v":0}]
[null,"Mão de obra temporária",null,null,null,{"$f":"E29*12","v":0}]
[null,"Alimentação - Mão-de-obra temporária",null,null,null,{"$f":"E30*12","v":0}]
[null,"Produção:"]
[null,"Item","Quantidade","Preço unitário","Valor total mensal","Valor total anual"]
[null,"Compra de alevinos ",null,null,{"$f":"C33*D33","v":0},{"$f":"E33*12","v":0}]
[null,"Testes concentração de amônia",null,null,{"$f":"C34*D34","v":0},{"$f":"E34*12","v":0}]
[null,"Testes concentração de nitrito",null,null,{"$f":"C35*D35","v":0},{"$f":"E35*12","v":0}]
[null,"Testes alcalinidade",null,null,{"$f":"C36*D36","v":0},{"$f":"E36*12","v":0}]
[null,"Ração ",null,null,{"$f":"C37*D37","v":0},{"$f":"E37*12","v":0}]
[null,"Fonte de Carbono",null,null,{"$f":"C38*D38","v":0},0]
[null,"Cal hidratada ",null,null,0,0]
[null,"Conta de eletricidade (kWh)",{"$f":"'Consumo de energia'!H7","v":0},null,0,0]
[null,"Conta de Eletricidade com uso da Energia Fotovoltaica (kWh)",{"$f":"'Consumo de energia'!H11","v":0},null,0,0]
[null,"Reposição de água ",null,null,0,0]
[null,"Tarifa esgoto ",null,null,0,0]
[null,"Diesel para o gerador",null,null,0,0]
[null,"Custos variáveis totais com utilização de energia hidrelétrica:",null,null,{"$f":"SUM(E28:E30,E33:E40,E42:E44)","v":0},{"$f":"SUM(F28:F30,F33:F40,F42:F44)","v":0}]
[null,"Custos variáveis totais com utilização de energia fotovoltaica:",null,null,{"$f":"SUM(E33:E44)","v":0},{"$f":"SUM(F33:F44)","v":0}]
[null,null,null,null,"Valor total mensal","Valor total anual"]
[null,"Despesas totais com utilização de energia hidrelétrica:",null,null,{"$f":"SUM(E45,E22)","v":0},{"$f":"SUM(F45,F22)","v":{"$error":"#DIV/0!"}}]
[null,"Despesas totais com utilização de energia fotovoltaica:",null,null,{"$f":"SUM(E23,E46)","v":0},{"$f":"SUM(F23,F46)","v":{"$error":"#DIV/0!"}}]

{"sheet":"Receitas","index":14,"n_rows":40,"n_cols":6,"rows_kept":40,"cut":false,"hidden":false,"merged":[[21,1,21,5],[25,1,25,5],[29,1,29,5],[33,1,33,5],[37,1,37,5],[13,1,13,5],[17,1,17,5],[1,1,1,5],[5,1,5,5],[9,1,9,5]]}
[]
[null,"Receita - Ano 1"]
[null,"Nº de peixes produzidos por ano","Peso de abate em kg","Kg produzidos por ano","Preço pago pelo kg","Receita anual"]
[null,null,null,{"$f":"B4*C4","v":0},null,{"$f":"E4*D4","v":0}]
[]
[null,"Receita - Ano 2"]
[null,"Nº de peixes produzidos por ano","Peso de abate em kg","Kg produzidos por ano","Preço pago pelo kg","Receita anual"]
[null,null,null,{"$f":"B8*C8","v":0},null,{"$f":"E8*D8","v":0}]
[]
[null,"Receita - Ano 3"]
[null,"Nº de peixes produzidos por ano","Peso de abate em kg","Kg produzidos por ano","Preço pago pelo kg","Receita anual"]
[null,null,null,{"$f":"B12*C12","v":0},null,{"$f":"E12*D12","v":0}]
[]
[null,"Receita - Ano 4"]
[null,"Nº de peixes produzidos por ano","Peso de abate em kg","Kg produzidos por ano","Preço pago pelo kg","Receita anual"]
[null,null,null,{"$f":"B16*C16","v":0},null,{"$f":"E16*D16","v":0}]
[]
[null,"Receita - Ano 5"]
[null,"Nº de peixes produzidos por ano","Peso de abate em kg","Kg produzidos por ano","Preço pago pelo kg","Receita anual"]
[null,null,null,{"$f":"B20*C20","v":0},null,{"$f":"E20*D20","v":0}]
[]
[null,"Receita - Ano 6"]
[null,"Nº de peixes produzidos por ano","Peso de abate em kg","Kg produzidos por ano","Preço pago pelo kg","Receita anual"]
[null,null,null,{"$f":"B24*C24","v":0},null,{"$f":"E24*D24","v":0}]
[]
[null,"Receita - Ano 7"]
[null,"Nº de peixes produzidos por ano","Peso de abate em kg","Kg produzidos por ano","Preço pago pelo kg","Receita anual"]
[null,null,null,{"$f":"B28*C28","v":0},null,{"$f":"E28*D28","v":0}]
[]
[null,"Receita - Ano 8"]
[null,"Nº de peixes produzidos por ano","Peso de abate em kg","Kg produzidos por ano","Preço pago pelo kg","Receita anual"]
[null,null,null,{"$f":"B32*C32","v":0},null,{"$f":"E32*D32","v":0}]
[]
[null,"Receita - Ano 9"]
[null,"Nº de peixes produzidos por ano","Peso de abate em kg","Kg produzidos por ano","Preço pago pelo kg","Receita anual"]
[null,null,null,{"$f":"B36*C36","v":0},null,{"$f":"E36*D36","v":0}]
[]
[null,"Receita - Ano 10"]
[null,"Nº de peixes produzidos por ano","Peso de abate em kg","Kg produzidos por ano","Preço pago pelo kg","Receita anual"]
[null,null,null,{"$f":"B40*C40","v":0},null,{"$f":"E40*D40","v":0}]

{"sheet":"Fluxo de caixa","index":15,"n_rows":31,"n_cols":13,"rows_kept":31,"cut":false,"hidden":false,"merged":[[1,1,1,12],[17,1,17,12],[9,1,9,2],[25,1,25,2]]}
[]
[null,"Fluxo de caixa com utilização de energia hidrelétrica."]
[null,"Ano",0,1,2,3,4,5,6,7,8,9,10]
[null,"Investimento inicial",{"$f":"'Investimento inicial'!E42","v":0}]
[null,"Custos anuais",null,{"$f":"'Custos de produção - Ano 1'!F48","v":{"$error":"#DIV/0!"}},{"$f":"'Custos de produção - Ano 2'!F48","v":{"$error":"#DIV/0!"}},{"$f":"'Custos de produção - Ano 3'!F48","v":{"$error":"#DIV/0!"}},{"$f":"'Custos de produção - Ano 4'!F48","v":{"$error":"#DIV/0!"}},{"$f":"'Custos de produção - Ano 5'!F48","v":{"$error":"#DIV/0!"}},{"$f":"'Custos de produção - Ano 6'!F48","v":{"$error":"#DIV/0!"}},{"$f":"'Custos de produção - Ano 7'!F48","v":{"$error":"#DIV/0!"}},{"$f":"'Custos de produção - Ano 8'!F48","v":{"$error":"#DIV/0!"}},{"$f":"'Custos de produção - Ano 9'!F48","v":{"$error":"#DIV/0!"}},{"$f":"Receitas!F40","v":0}]
[null,"Receitas anuais",null,{"$f":"Receitas!F4","v":0},{"$f":"Receitas!F8","v":0},{"$f":"Receitas!F12","v":0},{"$f":"Receitas!F16","v":0},{"$f":"Receitas!F20","v":0},{"$f":"Receitas!F24","v":0},{"$f":"Receitas!F28","v":0},{"$f":"Receitas!F32","v":0},{"$f":"Receitas!F36","v":0},{"$f":"Receitas!F40","v":0}]
[null,"Lucro anual",{"$f":"-C4","v":0},{"$f":"D6-D5","v":{"$error":"#DIV/0!"}},{"$f":"E6-E5","v":{"$error":"#DIV/0!"}},{"$f":"F6-F5","v":{"$error":"#DIV/0!"}},{"$error":"#DIV/0!"},{"$error":"#DIV/0!"},{"$error":"#DIV/0!"},{"$error":"#DIV/0!"},{"$error":"#DIV/0!"},{"$error":"#DIV/0!"},0]
[null,"Valor presente",{"$f":"PV(C11,C3,,-C7)","v":0},{"$f":"PV(C11,D3,,-D7)","v":{"$error":"#DIV/0!"}},{"$f":"PV(C11,E3,,-E7)","v":{"$error":"#DIV/0!"}},{"$f":"PV(C11,F3,,-F7)","v":{"$error":"#DIV/0!"}},{"$f":"PV(C11,G3,,-G7)","v":{"$error":"#DIV/0!"}},{"$f":"PV(C11,H3,,-H7)","v":{"$error":"#DIV/0!"}},{"$f":"PV(C11,I3,,-I7)","v":{"$error":"#DIV/0!"}},{"$f":"PV(C11,J3,,-J7)","v":{"$error":"#DIV/0!"}},{"$f":"PV(C11,K3,,-K7)","v":{"$error":"#DIV/0!"}},{"$f":"PV(C11,L3,,-L7)","v":{"$error":"#DIV/0!"}},{"$f":"PV(C11,M3,,-M7)","v":0}]
[null,"Valor presente acumulado",{"$f":"-C8","v":0},{"$f":"D8+C9","v":{"$error":"#DIV/0!"}},{"$f":"E8+D9","v":{"$error":"#DIV/0!"}},{"$f":"F8+E9","v":{"$error":"#DIV/0!"}},{"$error":"#DIV/0!"},{"$error":"#DIV/0!"},{"$error":"#DIV/0!"},{"$error":"#DIV/0!"},{"$error":"#DIV/0!"},{"$error":"#DIV/0!"},{"$error":"#DIV/0!"}]
[null,"Índices econômicos:"]
[null,"Taxa de juros",0]
[null,"Soma dos valores presentes",{"$f":"SUM(C8:M8)","v":{"$error":"#DIV/0!"}}]
[null,"Valor presente líquido",{"$f":"C12-C4","v":{"$error":"#DIV/0!"}}]
[null,"Taxa Interna de Retorno",{"$f":"IRR(C8:M8)","v":{"$error":"#VALUE!"}}]
[null,"Payback em anos",{"$f":"MATCH(0,C9:R9,1)-1+(-INDEX(C9:R9,MATCH(0,C9:R9,1)-1)/INDEX(C8:R8,MATCH(0,C9:R9,1)-1+1))","v":{"$error":"#DIV/0!"}}]
[]
[]
[null,"Fluxo de caixa com utilização de energia fotovoltaica."]
[null,"Ano",0,1,2,3,4,5,6,7,8,9,10]
[null,"Investimento inicial",{"$f":"'Investimento inicial'!E43","v":0}]
[null,"Custos anuais",null,{"$f":"'Custos de produção - Ano 1'!F49","v":{"$error":"#DIV/0!"}},{"$f":"'Custos de produção - Ano 2'!F49","v":{"$error":"#DIV/0!"}},{"$f":"'Custos de produção - Ano 3'!F49","v":{"$error":"#DIV/0!"}},{"$f":"'Custos de produção - Ano 4'!F49","v":{"$error":"#DIV/0!"}},{"$f":"'Custos de produção - Ano 5'!F49","v":{"$error":"#DIV/0!"}},{"$f":"'Custos de produção - Ano 6'!F49","v":{"$error":"#DIV/0!"}},{"$f":"'Custos de produção - Ano 7'!F49","v":{"$error":"#DIV/0!"}},{"$f":"'Custos de produção - Ano 8'!F49","v":{"$error":"#DIV/0!"}},{"$f":"'Custos de produção - Ano 9'!F49","v":{"$error":"#DIV/0!"}},{"$f":"'Custos de produção - Ano 10'!F49","v":{"$error":"#DIV/0!"}}]
[null,"Receitas anuais",null,{"$f":"Receitas!F4","v":0},{"$f":"Receitas!F8","v":0},{"$f":"Receitas!F12","v":0},{"$f":"Receitas!F16","v":0},{"$f":"Receitas!F20","v":0},{"$f":"Receitas!F24","v":0},{"$f":"Receitas!F28","v":0},{"$f":"Receitas!F32","v":0},{"$f":"Receitas!F36","v":0},{"$f":"Receitas!F40","v":0}]
[null,"Lucro anual",{"$f":"-C20","v":0},{"$f":"D22-D21","v":{"$error":"#DIV/0!"}},{"$f":"E22-E21","v":{"$error":"#DIV/0!"}},{"$f":"F22-F21","v":{"$error":"#DIV/0!"}},{"$error":"#DIV/0!"},{"$error":"#DIV/0!"},{"$error":"#DIV/0!"},{"$error":"#DIV/0!"},{"$error":"#DIV/0!"},{"$error":"#DIV/0!"},{"$error":"#DIV/0!"}]
[null,"Valor presente",{"$f":"PV(C27,C19,,-C23)","v":0},{"$f":"PV(C27,D19,,-D23)","v":{"$error":"#DIV/0!"}},{"$f":"PV(C27,E19,,-E23)","v":{"$error":"#DIV/0!"}},{"$f":"PV(C27,F19,,-F23)","v":{"$error":"#DIV/0!"}},{"$f":"PV(C27,G19,,-G23)","v":{"$error":"#DIV/0!"}},{"$f":"PV(C27,H19,,-H23)","v":{"$error":"#DIV/0!"}},{"$f":"PV(C27,I19,,-I23)","v":{"$error":"#DIV/0!"}},{"$f":"PV(C27,J19,,-J23)","v":{"$error":"#DIV/0!"}},{"$f":"PV(C27,K19,,-K23)","v":{"$error":"#DIV/0!"}},{"$f":"PV(C27,L19,,-L23)","v":{"$error":"#DIV/0!"}},{"$f":"PV(C27,M19,,-M23)","v":{"$error":"#DIV/0!"}}]
[null,"Valor presente acumulado",{"$f":"-C24","v":0},{"$f":"D24+C25","v":{"$error":"#DIV/0!"}},{"$f":"E24+D25","v":{"$error":"#DIV/0!"}},{"$f":"F24+E25","v":{"$error":"#DIV/0!"}},{"$f":"G24+F25","v":{"$error":"#DIV/0!"}},{"$f":"H24+G25","v":{"$error":"#DIV/0!"}},{"$f":"I24+H25","v":{"$error":"#DIV/0!"}},{"$f":"J24+I25","v":{"$error":"#DIV/0!"}},{"$f":"K24+J25","v":{"$error":"#DIV/0!"}},{"$f":"L24+K25","v":{"$error":"#DIV/0!"}},{"$f":"M24+L25","v":{"$error":"#DIV/0!"}}]
[null,"Índices econômicos:"]
[null,"Taxa de juros",0]
[null,"Soma dos valores presentes",{"$f":"SUM(D24:R24)","v":{"$error":"#DIV/0!"}}]
[null,"Valor presente líquido",{"$f":"C28-C20","v":{"$error":"#DIV/0!"}}]
[null,"Taxa Interna de Retorno",{"$f":"IRR(C24:R24)","v":{"$error":"#VALUE!"}}]
[null,"Payback em anos",{"$f":"MATCH(0,C25:R25,1)-1+(-INDEX(C25:R25,MATCH(0,C25:R25,1)-1)/INDEX(C24:R24,MATCH(0,C25:R25,1)-1+1))","v":{"$error":"#DIV/0!"}}]